Workbook

Sheet Sheet1
E1: Reports | F1: Total Annual | G1: Est. No. of | H1: Est. Total | I1: Wage | J1: Cost to the
A2: Section of | C2: Form No. | D2: Est. No. of | E2: Filed | F2: Responses | G2: Man hours | H2: Man-hours | I2: Class (per | J2: Public
A3: Regulation | B3: Title | C3: (if Any) | D3: Respondents | E3: Annually | F3: (D) x (E) | G3: Per Response | H3: (F) x (G) | I3: hour) | J3: (H) x (I)
A5: (A) | B5: (B) | C5: (C) | D5: (D) | E5: (E) | F5: (F) | G5: (G) | H5: (H) | I5: (I) | J5: (J)
A6: NONE
B8: REPORTING REQUIREMENTS - NON FORMS
A9: 4274.314(b)(14)(iv) - 100% of respondents are not-for-profit | B9: Operating plans for revolving line of credit | C9: written | D9: 25 | E9: 1 | F9: =(D9)*(E9) -> 25 | G9: 5 | H9: =(F9)*(G9) -> 125 | I9: 83 | J9: =(H9)*(I9) -> 10375
F10: =(D10)*(E10) -> 0 | H10: =(F10)*(G10) -> 0 | I10: 73 | J10: 0
A11: 4274.326(a)(2) - 100% of respondents are not-for-profit | B11: Assignments of Security | C11: Written | D11: 5 | E11: 1 | F11: =(D11)*(E11) -> 5 | G11: 1.5 | H11: =(F11)*(G11) -> 7.5 | I11: 83 | J11: 622.5
B12: Activities | F12: =(#REF!)*(#REF!) ->  | H12: =(F6)*(G12) -> 0 | I12: 83 | J12: 0
A13: 4274.332(b)(4) - 100% of respondents are not-for-profit | B13: Jusitification for amount of reserve | C13: Written | D13: 15 | E13: 1 | F13: 15 | G13: 2 | H13: =(F13)*(G13) -> 30 | I13: 83 | J13: 2490
A14: 4274.337(a) - 100% of respondents are not-for-profit | B14: Intergovernmental review comments | C14: written | D14: 80 | E14: 1 | F14: 240 | G14: 2 | H14: =(F14)*(G14) -> 480 | I14: 83 | J14: 39840
F15: 0 | H15: 0 | I15: 83 | J15: 0
A16: 4274.338(a)(5) - 100% of respondents are not-for-profit | B16: Request for advance of funds | C16: written or Form RD 440-11 (0575-0015) | D16: 27 | E16: 1 | F16: 27 | G16: 1 | H16: =(F16)*(G16) -> 27 | I16: 83 | J16: =(H16)*(I16) -> 2241
A17: 4274.338(a)(7)(v)(c) - 100% of respondents are not-for-profit | B17: Evidence of fidelity bond coverage | C17: written | D17: 240 | E17: 1 | F17: =(D17)*(E17) -> 240 | G17: 1.5 | H17: =(F17)*(G17) -> 360 | I17: 83 | J17: =(H17)*(I17) -> 29880
A18: 4274.343(a)(2) - 100% of respondents are not-for-profit | B18: Workplan | C18: written | D18: 240 | E18: 1 | F18: =(D18)*(E18) -> 240 | G18: 18 | H18: =(F18)*(G18) -> 4320 | I18: 83 | J18: =(H18)*(I18) -> 358560
A19: 4274.343(a)(9) - 100% of respondents are not-for-profit | B19: Certification of lack of financing | C19: written | D19: 240 | E19: 1 | F19: =(D19)*(E19) -> 240 | G19: 1.5 | H19: =(F19)*(G19) -> 360 | I19: 83 | J19: =(H19)*(I19) -> 29880
A20: 4272.307(c)(2) - 100% of respondents are not-for-profit | B20: Credit elsewhere test | C20: written | D20: 240 | E20: 1 | F20: =(D20)*(E20) -> 240 | G20: 1 | H20: =(F20)*(G20) -> 240 | I20: 83 | J20: =(H20)*(I20) -> 19920
A21: 4274.344(c)(2)(ii) - 100% of respondents are not-for-profit | B21: Low-income counties | C21: written | D21: 37 | E21: 1 | F21: 37 | G21: 2 | H21: 74 | I21: 83 | J21: 6142
A22: 4274.344(c)(2)(iv) - 100% of respondents are business or other for-profit | B22: Ultimate recipients certification of low-income work force | C22: written | D22: 24 | E22: 1 | F22: 24 | G22: 0.5 | H22: 12 | I22: 83 | J22: 996
F23: 0 | H23: 0 | I23: 83 | J23: 0
A24: 4274.356 - 100% of respondents are not-for-profit | B24: Loan Closing Certifications | C24: written | D24: 240 | E24: 1 | F24: 240 | G24: 1 | H24: 240 | I24: 83 | J24: 19920
A25: 4274.361(b)(1) - 100% of respondents are not-for-profit | B25: Certifications to make loans to ultimate recipients | C25: written | D25: 240 | E25: 1 | F25: 240 | G25: 1.5 | H25: 360 | I25: 83 | J25: 29880
A26: 4274.373 - 100% of respondents are not-for-profit | B26: Request for Appeal | C26: written | D26: 5 | E26: 1 | F26: 5 | G26: 2 | H26: 10 | I26: 83 | J26: 830
B27: SUBTOTAL | F27: =F9+F11+F13+F14+F16+F17+F18+F19+F20+F21+F22+F24+F25+F26 -> 1818 | H27: =H9+H11+H13+H14+H16+H17+H18+H19+H20+H21+H22+H24+H25+H26 -> 6645.5 | J27: =J9+J11+J13+J14+J16+J17+J18+J19+J20+J21+J22+J24+J25+J26 -> 551576.5
B29: FORMS APPROVED WITH THIS DOCKET
F31: =(D31)*(E31) -> 0 | H31: =(F31)*(G31) -> 0 | J31: =(H31)*(I31) -> 0
F32: 0 | H32: 0 | J32: 0
F33: 0 | H33: 0 | J33: 0
F35: 0 | H35: 0 | J35: 0
B36: Ineligibility & Vol. Excl. | F36: 0 | H36: 0 | J36: 0
B37: Lower Tier Cov. Trans. | F37: 0 | H37: 0 | J37: 0
F38: 0 | H38: 0 | I38: 83 | J38: 0
A39: 5274.338 - 100% of respondents are not-for-profit | B39: Loan Agreement | C39: 4274-4 | D39: 27 | E39: 1 | F39: =D39*E39 -> 27 | G39: 1.5 | H39: 40.5 | I39: 83 | J39: =I39*H39 -> 3361.5
A40: 4274.338 - 100% of respondents are not-for-profit | B40: Supplemental Loan Agreement | C40: 4274-5 | D40: 14 | E40: 1 | F40: 14 | G40: 1 | H40: 14 | I40: 83 | J40: 1162
F41: 0 | H41: 0 | I41: 83 | J41: 0
D42: 100 | E42: 1 | F42: 100 | G42: 0.25 | H42: 25 | I42: 83 | J42: 2075
A43: 4274.338(b)(9) - 100% of respondents are not-for-profit | B43: Promissory Note | C43: 4274-3 | D43: 27 | E43: 1 | F43: 27 | G43: 1.5 | H43: 40.5 | I43: 83 | J43: 3361.5
F44: 0 | H44: 0 | I44: 83 | J44: 0
A45: 4274.343(a)(1) - 100% of respondents are not-for-profit | B45: Application for Loan (IRP) | C45: 4274-1 | D45: 240 | E45: 1 | F45: 240 | G45: 56 | H45: 13440 | I45: 83 | J45: 1115520
A47: 4274.350 - 100% of respondents are not-for-profit | B47: Letter of Intent to Meet Conditions | C47: 1942-46 (0575-0015) | D47: 240 | E47: 1 | F47: =(D47)*(E47) -> 240 | G47: 1 | H47: =(F47)*(G47) -> 240 | I47: 83 | J47: =(H47)*(I47) -> 19920
A48: 4274.337(B) - 100% of respondents are not-for-profit | B48: Request for Environmental Information | C48: 1970-A, Exhibit C | D48: 240 | E48: 1 | F48: =D48*E48 -> 240 | G48: 6 | H48: =F48*G48 -> 1440 | I48: 83 | J48: =H48*I48 -> 119520
A49: 4274.338(b)(4)(ii)© - 100% of respondents are not-for-profit | B49: Report of IRP/RDLF | C49: 1951-4 (0570-0015)/LINC | D49: 240 | E49: 1 | F49: =D49*E49 -> 240 | G49: 4 | H49: =F49*G49 -> 960 | I49: 83 | J49: =H49*I49 -> 79680
A50: 4274.343(a)(7) - 100% of respondents are not-for-profit | B50: Assurance Agreement | C50: 400-4 (0575-0018) | D50: 240 | E50: 1 | F50: =D50*E50 -> 240 | G50: 0.25 | H50: =F50*G50 -> 60 | I50: 83 | J50: =H50*I50 -> 4980
A51: 4274.326(a)(3) - 100% of respondents are not-for-profit | B51: Deposit Agreement | C51: 402-1 (0575-0158) | D51: 240 | E51: 1 | F51: =D51*E51 -> 240 | G51: 0.08 | H51: =F51*G51 -> 19.2 | I51: 83 | J51: =H51*I51 -> 1593.6
F52: =(D52)*(E52) -> 0 | H52: =(F52)*(G52) -> 0 | J52: =(H52)*(I52) -> 0
F53: =(D53)*(E53) -> 0 | H53: =(F53)*(G53) -> 0 | J53: =(H53)*(I53) -> 0
A54: 4274.337(c)(4) | B54: Compliance Review | C54: 400-8 (0575-0018) | D54: 192 | E54: 1 | F54: 192 | G54: 8 | H54: 1536 | I54: 83 | J54: 127488
A55: 427.337(c)(4) - 100% of respondents are not-for-profit | B55: Compliance Review | C55: 400-8 (0575-0018) | D55: 240 | E55: 1 | F55: =D55*E55 -> 240 | G55: 8 | H55: =F55*G55 -> 1920 | I55: 83 | J55: =H55*I55 -> 159360
B56: SUBTOTAL | F56: =F39+F40+F43+F45+F47+F48+F49+F50+F51+F55 -> 1748 | H56: =H39+H40+H43+H45+H47+H48+H49+H50+H51+H55 -> 18174.2 | J56: =J39+J40+J43+J45+J47+J48+J49+J50+J51+J55 -> 1508458.6
B57: TOTAL | F57: =F27+F56 -> 3566 | H57: =H27+H56 -> 24819.7 | J57: =J27+J56 -> 2060035.1
